fUST/lending_fUST_20240102
["ID","MTS","AMOUNT","RATE_DAILY","PERIOD"]
[309810672,1704160241727,-516.2646714,0.00041095,7]
[309810673,1704160241736,-638.38719756,0.00041095,7]
[309810674,1704160241746,-500.0,0.00041095,7]
[309810675,1704160241755,-500.0,0.00041095,7]
[309810676,1704160241764,-500.0,0.00041095,7]
[309810677,1704160241773,-500.0,0.00041095,7]
[309810678,1704160241782,-500.0,0.00041095,7]
[309810679,1704160241791,-500.0,0.00041095,7]
[309810680,1704160241800,-622.92474408,0.00041095,7]
[309810681,1704160241810,-3966.14,0.00041095,7]
[309810682,1704160241819,-3966.14,0.00041095,7]
[309810683,1704160241828,-3966.14,0.00041095,7]
[309810684,1704160241838,-3966.14,0.00041095,7]
[309810685,1704160241847,-3966.14,0.00041095,7]
[309810686,1704160241857,-3966.14,0.00041095,7]
[309810687,1704160241867,-3966.14,0.00041095,7]
[309810688,1704160241877,-3966.14,0.00041095,7]
[309810689,1704160241886,-3966.14,0.00041095,7]
[309810690,1704160241896,-3966.14,0.00041095,7]
[309810691,1704160241906,-3966.14,0.00041095,7]
[309810692,1704160241915,-3966.14,0.00041095,7]
[309810693,1704160241926,-591.9937849,0.00041095,7]
[309810694,1704160241936,-500.0,0.00041095,7]
[309810695,1704160241945,-500.0,0.00041095,7]
[309810696,1704160241955,-500.0,0.00041095,7]
[309810697,1704160241964,-500.0,0.00041095,7]
[309810698,1704160241973,-500.0,0.00041095,7]
[309810699,1704160241983,-502.75983099,0.00041095,7]
[309810700,1704160241993,-500.0,0.00041095,7]
[309810701,1704160242002,-500.0,0.00041095,7]
[309810702,1704160242011,-500.0,0.00041095,7]
[309810703,1704160242021,-500.0,0.00041095,7]
[309810704,1704160242030,-500.0,0.00041095,7]
[309810705,1704160242039,-484.05722844,0.00041095,7]
[309811107,1704161017216,-341.45,0.0002489,3]
[309811108,1704161017241,-212.57155595,0.00024899,2]
[309811109,1704161017263,-1184.97844405,0.000249,2]
[309811110,1704161126064,268.52109404,0.0002,2]
[309811111,1704161156103,-675.69429378,0.00024861,2]
[309811112,1704161156126,-162.44234547,0.00024861,2]
[309811113,1704161156147,-839.25,0.00024862,3]
[309811114,1704161156167,-274.1459145,0.0002487,2]
[309811115,1704161156187,-154.82968734,0.0002487,2]
[309811116,1704161156207,-198.5260656,0.0002487,2]
[309811117,1704161156226,-328.73382728,0.0002487,2]
[309811118,1704161156246,-2026.57814012,0.0002487,2]
[309811119,1704161156265,-300.76052365,0.00024871,2]
[309811120,1704161156284,-14217.0238232,0.00024871,2]
[309811121,1704161156305,-4907.56129694,0.00024872,2]
[309811122,1704161156325,-70756.60312212,0.00024872,2]
[309811123,1704161219101,-4200.83005,0.00023868,2]
[309811124,1704161226095,-1028.76933116,0.00023867,2]
[309811125,1704161226116,-2031.17478188,0.00023867,2]
[309811126,1704161226137,-13669.99879992,0.00023867,2]
[309811127,1704161226159,-20699.16995,0.00023868,2]
[309811128,1704161226180,-198.5260656,0.00024862,2]
[309811129,1704161226200,-274.1459145,0.00024863,2]
[309811130,1704161226220,-4802.57442748,0.00024864,2]
[309811131,1704161226240,-585.90397292,0.00024865,2]
[309811132,1704161226260,-5000.0,0.00024865,5]
[309811133,1704161226280,-78227.0467231,0.00024865,2]
[309811134,1704161226300,-154.82968734,0.00024866,2]
[309811135,1704161226320,-3902.13958521,0.00024866,2]
[309811136,1704161226340,-2989.40003667,0.00024866,2]
[309811137,1704161226360,-524.73174263,0.00024867,2]
[309811138,1704161226381,-260.47439741,0.00024867,2]
[309811139,1704161226402,-1733.76705189,0.00024867,2]
[309811140,1704161226423,-10473.05577926,0.00024868,2]
[309811141,1704161226443,-212.57155595,0.00024871,2]
[309811142,1704161226463,-3384.1862163,0.00024872,2]
[309811143,1704161226482,-226.26068425,0.00024886,2]
[309811144,1704161226502,-579.14039746,0.00024886,2]
[309811145,1704161226521,-227.53446515,0.00024886,2]
[309811146,1704161226541,-468.12812255,0.00024896,2]
[309811147,1704161226560,-189.849362,0.0002492,2]
[309811148,1704161226579,-3000.0,0.000263,2]
[309811149,1704161226601,-528.588082,0.00026301,2]
[309811150,1704161226621,-284.54,0.0002648,3]
[309811151,1704161226643,-237.12,0.0002648,3]
[309811152,1704161226664,-197.6,0.0002648,3]
[309811153,1704161226683,-483.34286119,0.00026489,2]
[309811154,1704161226703,-155.9150112,0.00026489,2]
[309811155,1704161226723,-663.93163578,0.00026489,2]
[309811156,1704161226744,-305.17357894,0.00026489,2]
[309811157,1704161226765,-294.84794068,0.0002649,2]
[309811158,1704161226787,-1007.62231098,0.0002649,2]
[309811159,1704161226809,-2026.57814012,0.0002649,2]
[309811160,1704161226829,-4907.56129694,0.0002649,2]
[309811161,1704161226848,-300.76052365,0.0002649,2]
[309811162,1704161226868,-675.69429378,0.0002649,2]
[309811163,1704161226892,-14217.0238232,0.00026491,2]
[309811164,1704161226912,-528.588082,0.00027275,2]
[309811165,1704161226932,-200.0,0.00027387,15]
[309811166,1704161226952,-12774.04216491,0.00027397,2]
[309811167,1704161226971,-178.12390088,0.00027489,2]
[309811168,1704161226991,-364.85447402,0.00027489,2]
[309811169,1704161227011,-1119.73178244,0.00027489,2]
[309811170,1704161227030,-181.06895775,0.00027489,2]
[309811171,1704161227050,-765.88883607,0.0002749,2]
[309811172,1704161227070,-660.78085481,0.0002749,2]
[309811173,1704161227090,-182.96903638,0.0002749,2]
[309811174,1704161227111,-280.39024846,0.0002749,2]
[309811175,1704161227131,-12400.96211397,0.000275,2]
[309811176,1704161227151,-483.03923641,0.00027998,2]
[309811177,1704161227171,-781.72443064,0.00028,2]
[309811178,1704161227190,-528.588082,0.00028248,2]
[309811179,1704161227210,-157.05964581,0.0002828,2]
[309811180,1704161227232,-189.849362,0.00028317,2]
[309811181,1704161227252,-227.52275642,0.000289,2]
[309811182,1704161227272,-528.588082,0.00029221,2]
[309811183,1704161227293,-322.44102787,0.0003,3]
[309811184,1704161227314,-446.68374029,0.0003,2]
[309811185,1704161227335,-280.0,0.00030125,15]
[309811186,1704161227355,-528.588082,0.00030194,2]
[309811187,1704161227373,-216.47365635,0.00032,10]
[309811188,1704161227393,-984.5444071,0.00032,2]
[309811189,1704161227412,-686.7472763,0.00033,3]
[309811190,1704161227433,-391.0,0.00033138,15]
[309811191,1704161227456,-4329.25705695,0.00034,2]
[309811192,1704161227481,-1000.0,0.00034,7]
[309811193,1704161227504,-652.06140405,0.00034648,2]
[309811194,1704161227525,-379.12106564,0.00034999,4]
[309811195,1704161227546,-500.0,0.00034999,4]
[309811196,1704161227571,-500.0,0.00034999,4]
[309811197,1704161227591,-232.34121036,0.00034999,4]
[309811198,1704161227679,-500.0,0.00034999,4]
[309811199,1704161227699,-467.62509373,0.00034999,4]
[309811200,1704161227721,-500.0,0.00034999,4]
[309811201,1704161227742,-309.69391073,0.00034999,4]
[309811202,1704161227765,-500.0,0.00034999,4]
[309811203,1704161227786,-500.0,0.00034999,4]
[309811204,1704161227809,-634.27143786,0.00034999,4]
[309811205,1704161227830,-347.48423848,0.00034999,7]
[309811206,1704161227850,-501.86850669,0.00035,7]
[309811207,1704161227870,-9304.29587217,0.00035,3]
[309811208,1704161227893,-2967.93276904,0.00035,2]
[309811209,1704161227912,-154.86062544,0.00035,4]
[309811210,1704161227933,-590.09569667,0.00035,2]
[309811211,1704161227953,-790.9739129,0.00035,4]
[309811212,1704161227972,-73647.4530685,0.00035,7]
[309811213,1704161227993,-180.14054089,0.000355,14]
[309811214,1704161228013,-590.493153,0.00035616,120]
[309811215,1704161228033,-423.0,0.00035973,2]
[309811216,1704161228052,-9881.9688229,0.00035997,2]
[309811217,1704161228072,-15908.35667707,0.00035998,4]
[309811218,1704161228092,-385.09268139,0.00036,2]
[309811219,1704161228112,-25846.72712318,0.00036,4]
[309811220,1704161228134,-649.68948469,0.00036433,2]
[309811221,1704161228155,-200.0,0.00036452,15]
[309811222,1704161228176,-348.0,0.00036452,15]
[309811223,1704161228198,-175.0,0.00036884,2]
[309811224,1704161228222,-2204.26421866,0.00036884,2]
[309811225,1704161228243,-2712.50902644,0.00036884,2]
[309811226,1704161228263,-170.88512577,0.00036884,2]
[309811227,1704161228283,-621.48447423,0.00038255,2]
[309811228,1704161228303,-500.0,0.00038356,2]
[309811229,1704161228322,-155.13179299,0.00038983,4]
[309811230,1704161228341,-556.51872598,0.00038983,4]
[309811231,1704161228361,-155.20325427,0.00038984,2]
[309811232,1704161228380,-157.92635778,0.00038984,4]
[309811233,1704161228400,-4299.40924984,0.00038995,2]
[309811234,1704161228421,-4932.2093368,0.00039,4]
[309811235,1704161228441,-473.0,0.0003926,2]
[309811236,1704161228468,-310.54553164,0.00039841,4]
[309811237,1704161228499,-217.09828266,0.00039841,4]
[309811238,1704161228525,-1362.66980997,0.00039841,4]
[309811239,1704161228554,-577.09878801,0.00039841,4]
[309811240,1704161228581,-453.26817428,0.00039841,4]
[309811241,1704161228605,-326.61440311,0.00039841,4]
[309811242,1704161228632,-155.75064648,0.00039841,4]
[309811243,1704161228661,-170.13254358,0.00039841,2]
[309811244,1704161228690,-155.15889919,0.00039841,4]
[309811245,1704161228716,-4797.08949833,0.00039841,4]
[309811246,1704161228746,-322.01738218,0.00039841,2]
[309811247,1704161228777,-155.18451075,0.00039841,2]
[309811248,1704161228804,-363.23875403,0.00039841,30]
[309811249,1704161228832,-4044.7511135,0.0003999,4]
[309811250,1704161228862,-44900.88205123,0.00039998,2]
[309811251,1704161231109,-14217.0238232,0.00023866,2]
[309811252,1704161231133,-212.57155595,0.00023866,2]
[309811253,1704161231284,-154.82968734,0.00023867,2]
[309811254,1704161231352,-154.82968734,0.00023867,2]
[309811255,1704161231375,-162.44234547,0.00024862,2]
[309811256,1704161231397,-328.73382728,0.00024862,2]
[309811257,1704161231423,-27798.46783095,0.00039998,2]
[309811258,1704161231447,-169.74658558,0.0004,3]
[309811259,1704161231468,-22304.8150058,0.0004,120]
[309811260,1704161231490,-185.5969086,0.0004,2]
[309811261,1704161231517,-160.11156552,0.0004,4]
[309811262,1704161231539,-200.0,0.00040097,30]
[309811263,1704161231559,-200.0,0.00040097,30]
[309811264,1704161231579,-368.0,0.00040097,30]
[309811265,1704161231600,-620.07422371,0.00040168,2]
[309811266,1704161231623,-155.0,0.0004037,2]
[309811267,1704161231647,-213.43987,0.0004051,2]
[309811268,1704161231668,-1508.081043,0.000406,3]
[309811269,1704161231691,-163.713886,0.00040881,2]
[309811270,1704161231713,-220.952035,0.00040881,2]
[309811271,1704161231735,-280.57505624,0.00040993,7]
[309811272,1704161231756,-500.0,0.00040993,7]
[309811273,1704161231778,-162.4804567,0.00040993,7]
[309811274,1704161231798,-500.0,0.00040993,7]
[309811275,1704161231818,-475.7035784,0.00040993,7]
[309811276,1704161231838,-500.0,0.00040993,7]
[309811277,1704161231858,-482.27043305,0.00040993,7]
[309811278,1704161231878,-500.0,0.00040993,7]
[309811279,1704161231897,-450.51,0.00040994,2]
[309811280,1704161231920,-575.66,0.00040994,2]
[309811281,1704161231941,-575.66,0.00040994,2]
[309811282,1704161231961,-575.66,0.00040994,2]
[309811283,1704161231982,-575.66,0.00040994,2]
[309811284,1704161232002,-575.66,0.00040994,2]
[309811285,1704161232022,-575.66,0.00040994,2]
[309811286,1704161232042,-575.66,0.00040994,2]
[309811287,1704161232062,-575.66,0.00040994,2]
[309811288,1704161232082,-575.66,0.00040994,2]
[309811289,1704161232102,-100377.17082752,0.00040995,2]
[309811290,1704161232123,-10011.08958179,0.00041,2]
[309811291,1704161232144,-150.8642222,0.00041005,2]
[309811292,1704161232167,-250.26564092,0.00041005,2]
[309811293,1704161232189,-543.45744179,0.00041084,4]
[309811294,1704161232209,-361.59585285,0.00041092,2]
[309811295,1704161232229,-155.03277991,0.00041092,4]
[309811296,1704161232252,-1161.50646297,0.00041092,5]
[309811297,1704161232274,-322.86935835,0.00041092,4]
[309811298,1704161232295,-268.897961,0.00041093,10]
[309811299,1704161232317,-1312.34772323,0.00041093,4]
[309811300,1704161232338,-3745.18778621,0.00041093,4]
[309811301,1704161232363,-1251.41734092,0.00041093,4]
[309811302,1704161232387,-313.58750165,0.00041094,4]
[309811303,1704161232407,-382.13191231,0.00041094,4]
[309811304,1704161232428,-319.26033459,0.00041094,4]
[309811305,1704161232447,-1195.32985964,0.00041094,4]
[309811306,1704161232467,-500.0,0.00041095,7]
[309811307,1704161232488,-500.70408433,0.00041095,7]
[309811308,1704161232509,-600.89762155,0.00041095,7]
[309811309,1704161232530,-506.33757295,0.00041095,7]
[309811310,1704161232551,-537.20078607,0.00041095,7]
[309811311,1704161232570,-532.33450474,0.00041095,7]
[309811312,1704161232590,-502.513825,0.00041095,7]
[309811313,1704161232610,-502.28522468,0.00041095,7]
[309811314,1704161232631,-500.0,0.00041095,7]
[309811315,1704161232652,-508.15597706,0.00041095,7]
[309811316,1704161232672,-500.0,0.00041095,7]
[309811317,1704161232692,-500.0,0.00041095,7]
[309811318,1704161232714,-500.0,0.00041095,7]
[309811319,1704161232735,-184.13927043,0.00041095,7]
[309811320,1704161232756,-500.68115597,0.00041095,7]
[309811321,1704161232778,-504.39635893,0.00041095,7]
[309811322,1704161232798,-407.77351442,0.00041095,7]
[309811323,1704161232818,-600.0018182,0.00041095,7]
[309811324,1704161232838,-150.0,0.00041095,7]
[309811325,1704161232857,-500.0,0.00041095,7]
[309811326,1704161232876,-629.33227677,0.00041095,7]
[309811327,1704161232896,-510.12991902,0.00041095,7]
[309811328,1704161232916,-504.31060641,0.00041095,2]
[309811329,1704161232938,-504.82124022,0.00041095,7]
[309811330,1704161232959,-509.6888948,0.00041095,7]
[309811331,1704161232979,-543.27081281,0.00041095,7]
[309811332,1704161233000,-509.90108145,0.00041095,7]
[309811333,1704161233021,-503.16301792,0.00041095,7]
[309811334,1704161233042,-514.24530831,0.00041095,7]
[309811335,1704161233062,-501.22713174,0.00041095,7]
[309811336,1704161233083,-500.00000001,0.00041095,7]
[309811337,1704161233103,-390.34631472,0.00041095,7]
[309811338,1704161233122,-501.65209593,0.00041095,7]
[309811339,1704161233142,-506.19969527,0.00041095,7]
[309811340,1704161233162,-500.0,0.00041095,7]
[309811341,1704161233182,-503.02228674,0.00041095,7]
[309811342,1704161233203,-503.37188405,0.00041095,7]
[309811343,1704161233225,-500.0,0.00041095,7]
[309811344,1704161233245,-500.0,0.00041095,7]
[309811345,1704161233266,-503.19921092,0.00041095,7]
[309811346,1704161233286,-504.08580467,0.00041095,7]
[309811347,1704161233307,-503.96848115,0.00041095,7]
[309811348,1704161233327,-500.0,0.00041095,7]
[309811349,1704161233348,-500.0,0.00041095,7]
[309811350,1704161233368,-502.20811042,0.00041095,7]
[309811351,1704161233388,-350.46453029,0.00041095,7]
[309811352,1704161233408,-155.24695126,0.00041095,14]
[309811353,1704161233505,-500.0,0.00041095,2]
[309811354,1704161233527,-502.60353928,0.00041095,7]
[309811355,1704161233548,-500.92608889,0.00041095,7]
[309811356,1704161233569,-274.96302419,0.00041095,4]
[309811357,1704161233593,-500.0,0.00041095,7]
[309811358,1704161233617,-500.0,0.00041095,7]
[309811359,1704161233639,-500.0,0.00041095,7]
[309811360,1704161233660,-762.96,0.00041095,7]
[309811361,1704161233682,-500.0,0.00041095,7]
[309811362,1704161233703,-500.0,0.00041095,7]
[309811363,1704161233725,-500.0,0.00041095,7]
[309811364,1704161233747,-500.0,0.00041095,7]
[309811365,1704161233767,-406.76791682,0.00041095,7]
[309811366,1704161233787,-500.0,0.00041095,7]
[309811367,1704161233808,-500.0,0.00041095,7]
[309811368,1704161233829,-500.0,0.00041095,7]
[309811369,1704161233850,-500.0,0.00041095,7]
[309811370,1704161233870,-2371.14,0.00041095,7]
[309811371,1704161233890,-511.63726716,0.00041095,7]
[309811372,1704161233912,-500.0,0.00041095,7]
[309811373,1704161233933,-223.23790234,0.00041095,7]
[309811374,1704161233955,-500.0,0.00041095,7]
[309811375,1704161233975,-500.70216579,0.00041095,7]
[309811376,1704161233996,-500.0,0.00041095,7]
[309811377,1704161234016,-500.0,0.00041095,7]
[309811378,1704161234036,-535.07169261,0.00041095,7]
[309811379,1704161234056,-500.0,0.00041095,7]
[309811380,1704161234077,-500.0,0.00041095,7]
[309811381,1704161234097,-500.0,0.00041095,7]
[309811382,1704161234119,-500.0,0.00041095,7]
[309811383,1704161234140,-456.09866089,0.00041095,7]
[309811384,1704161234161,-500.0,0.00041095,7]
[309811385,1704161234181,-526.42836703,0.00041095,7]
[309811386,1704161234202,-604.99735244,0.00041095,7]
[309811387,1704161234223,-500.0,0.00041095,7]
[309811388,1704161234243,-500.0,0.00041095,7]
[309811389,1704161234264,-507.12318767,0.00041095,7]
[309811390,1704161234284,-500.0,0.00041095,7]
[309811391,1704161234304,-500.0,0.00041095,7]
[309811392,1704161234324,-500.0,0.00041095,7]
[309811393,1704161234344,-500.0,0.00041095,7]
[309811394,1704161234364,-500.0,0.00041095,7]
[309811395,1704161234384,-500.0,0.00041095,7]
[309811396,1704161234404,-500.0,0.00041095,7]
[309811397,1704161234425,-503.5416314,0.00041095,7]
[309811398,1704161234444,-507.0645809,0.00041095,7]
[309811399,1704161234463,-510.42695868,0.00041095,7]
[309811400,1704161234483,-500.0,0.00041095,7]
[309811401,1704161234502,-203.45177522,0.00041095,7]
[309811402,1704161234522,-500.0,0.00041095,7]
[309811403,1704161234542,-520.24465914,0.00041095,7]
[309811404,1704161234563,-500.0,0.00041095,7]
[309811405,1704161234584,-500.0,0.00041095,7]
[309811406,1704161234604,-500.0,0.00041095,7]
[309811407,1704161234625,-500.0,0.00041095,7]
[309811408,1704161234646,-500.0,0.00041095,7]
[309811409,1704161234666,-502.16963353,0.00041095,7]
[309811410,1704161234687,-451.29735976,0.00041095,7]
[309811411,1704161234707,-292.49371244,0.00041095,7]
[309811412,1704161234727,-648.15828433,0.00041095,7]
[309811413,1704161234747,-500.0,0.00041095,7]
[309811414,1704161234766,-500.0,0.00041095,7]
[309811415,1704161234786,-500.0,0.00041095,7]
[309811416,1704161234806,-500.0,0.00041095,7]
[309811417,1704161234831,-500.0,0.00041095,7]
[309811418,1704161234851,-613.75424218,0.00041095,7]
[309811419,1704161234871,-500.0,0.00041095,7]
[309811420,1704161234892,-500.0,0.00041095,7]
[309811421,1704161234912,-506.24436151,0.00041095,7]
[309811422,1704161234934,-500.0,0.00041095,7]
[309811423,1704161234954,-500.0,0.00041095,7]
[309811424,1704161234976,-504.39497807,0.00041095,7]
[309811425,1704161234996,-500.0,0.00041095,7]
[309811426,1704161235017,-528.60377604,0.00041095,7]
[309811427,1704161235038,-746.65,0.00041095,7]
[309811428,1704161235057,-500.0,0.00041095,7]
[309811429,1704161235077,-500.0,0.00041095,7]
[309811430,1704161235097,-500.98072647,0.00041095,2]
[309811431,1704161235118,-501.74528454,0.00041095,7]
[309811432,1704161235139,-500.49963953,0.00041095,7]
[309811433,1704161235161,-500.0,0.00041095,7]
[309811434,1704161235181,-500.0,0.00041095,7]
[309811435,1704161235200,-500.0,0.00041095,7]
[309811436,1704161235221,-500.0,0.00041095,7]
[309811437,1704161235241,-500.0,0.00041095,7]
[309811438,1704161235262,-503.37375583,0.00041095,7]
[309811439,1704161235281,-500.0,0.00041095,7]
[309811440,1704161235301,-500.0,0.00041095,7]
[309811441,1704161235321,-2141.32,0.00041095,7]
[309811442,1704161235341,-500.0,0.00041095,2]
[309811443,1704161235361,-500.0,0.00041095,7]
[309811444,1704161235381,-501.60078934,0.00041095,7]
[309811445,1704161235400,-501.44197547,0.00041095,7]
[309811446,1704161235422,-500.0,0.00041095,7]
[309811447,1704161235442,-500.0,0.00041095,7]
[309811448,1704161235462,-501.88365766,0.00041095,7]
[309811449,1704161235556,-500.0,0.00041095,7]
[309811450,1704161235577,-308.78144066,0.00041095,7]
[309811451,1704161238086,-194.08420909,0.00041095,7]
[309811452,1704161238106,-500.0,0.00041095,7]
[309811453,1704161238127,-1194.12,0.00041095,7]
[309811454,1704161238148,-500.0,0.00041095,7]
[309811455,1704161238168,-500.0,0.00041095,7]
[309811456,1704161238189,-502.96994907,0.00041095,7]
[309811457,1704161238212,-500.0,0.00041095,7]
[309811458,1704161238232,-501.7322067,0.00041095,7]
[309811459,1704161238251,-501.38464455,0.00041095,7]
[309811460,1704161238271,-506.05113733,0.00041095,7]
[309811461,1704161238291,-500.0,0.00041095,7]
[309811462,1704161238311,-504.12430121,0.00041095,7]
[309811463,1704161238332,-500.0,0.00041095,7]
[309811464,1704161238353,-521.90692322,0.00041095,7]
[309811465,1704161238377,-470.52088449,0.00041095,7]
[309811466,1704161238397,-502.74262644,0.00041095,7]
[309811467,1704161238417,-504.43813749,0.00041095,7]
[309811468,1704161238437,-502.85488882,0.00041095,7]
[309811469,1704161238457,-500.0,0.00041095,7]
[309811470,1704161238476,-500.0,0.00041095,7]
[309811471,1704161238497,-500.0,0.00041095,7]
[309811472,1704161238517,-500.0,0.00041095,7]
[309811473,1704161238537,-500.0,0.00041095,7]
[309811474,1704161238556,-557.49671277,0.00041095,7]
[309811475,1704161238576,-525.49511778,0.00041095,7]
[309811476,1704161238598,-500.0,0.00041095,7]
[309811477,1704161238618,-500.0,0.00041095,7]
[309811478,1704161238639,-500.0,0.00041095,7]
[309811479,1704161238660,-500.0,0.00041095,7]
[309811480,1704161238682,-500.0,0.00041095,7]
[309811481,1704161238702,-500.0,0.00041095,7]
[309811482,1704161238722,-500.0,0.00041095,7]
[309811483,1704161238743,-500.84167357,0.00041095,7]
[309811484,1704161238766,-232.76638391,0.00041095,7]
[309811485,1704161238789,-528.65706996,0.00041095,7]
[309811486,1704161238809,-509.11119532,0.00041095,7]
[309811487,1704161238828,-502.30239505,0.00041095,7]
[309811488,1704161238850,-501.80338183,0.00041095,7]
[309811489,1704161238870,-500.119833,0.00041095,7]
[309811490,1704161238892,-500.0,0.00041095,7]
[309811491,1704161238912,-458.75628667,0.00041095,7]
[309811492,1704161238932,-500.0,0.00041095,7]
[309811493,1704161238953,-500.0,0.00041095,7]
[309811494,1704161238973,-500.0,0.00041095,7]
[309811495,1704161238993,-501.40539649,0.00041095,7]
[309811496,1704161239015,-500.0,0.00041095,7]
[309811497,1704161239036,-500.0,0.00041095,7]
[309811498,1704161239234,-509.56449677,0.00041095,7]
[309811499,1704161239255,-500.0,0.00041095,7]
[309811500,1704161239276,-504.15467671,0.00041095,7]
[309811501,1704161239307,-602.92967329,0.00041095,7]
[309811502,1704161239330,-268.4865735,0.00041095,7]
[309811503,1704161239349,-500.0,0.00041095,7]
[309811504,1704161239369,-500.0,0.00041095,7]
[309811505,1704161239389,-500.0,0.00041095,7]
[309811506,1704161239408,-500.0,0.00041095,7]
[309811507,1704161239428,-500.0,0.00041095,7]
[309811508,1704161239447,-500.0,0.00041095,7]
[309811509,1704161239468,-500.0,0.00041095,7]
[309811510,1704161239487,-500.0,0.00041095,7]
[309811511,1704161239506,-500.0,0.00041095,7]
[309811512,1704161239530,-500.0,0.00041095,7]
[309811513,1704161239549,-500.0,0.00041095,7]
[309811514,1704161239570,-500.0,0.00041095,7]
[309811515,1704161239593,-500.0,0.00041095,7]
[309811516,1704161239615,-500.0,0.00041095,7]
[309811517,1704161239639,-188.8275591,0.00041095,7]
[309811518,1704161239661,-419.40332274,0.00041095,7]
[309811519,1704161239682,-500.0,0.00041095,7]
[309811520,1704161239705,-500.0,0.00041095,7]
[309811521,1704161239726,-500.0,0.00041095,7]
[309811522,1704161239747,-500.0,0.00041095,7]
[309811523,1704161239767,-520.17215198,0.00041095,7]
[309811524,1704161239788,-500.0,0.00041095,7]
[309811525,1704161239807,-221.21595368,0.00041095,7]
[309811526,1704161239837,-500.0,0.00041095,7]
[309811527,1704161239860,-500.0,0.00041095,7]
[309811528,1704161239882,-500.0,0.00041095,7]
[309811529,1704161239904,-500.0,0.00041095,7]
[309811530,1704161239925,-36414.59563747,0.00041095,3]
[309811531,1704161245094,-3384.1862163,0.00024872,2]
[309811532,1704161245114,-153.0,0.00033,2]
[309811533,1704161245136,-304.83848844,0.00041084,4]
[309811534,1704161245156,-420.95341957,0.00041092,4]
[309811535,1704161245176,-565.56649431,0.00041092,4]
[309811536,1704161245196,-6807.46178036,0.00041093,4]
[309811537,1704161245216,-1000.0,0.00041093,7]
[309811538,1704161245236,-1579.68419372,0.00041093,4]
[309811539,1704161245256,-1759.9964873,0.00041093,4]
[309811540,1704161248080,-1268.29395238,0.00040995,2]
[309811541,1704161248101,-1268.29395236,0.00041029,2]
[309811542,1704161248123,-164.67,0.00041083,3]
[309811543,1704161248144,-205.54303668,0.00041092,4]
[309811544,1704161248165,-5775.60627192,0.00041093,4]
[309811545,1704161248185,-1037.53442424,0.00041093,4]
[309811546,1704161248205,-51666.74221242,0.00041093,4]
[309811547,1704161251097,-1268.29395236,0.00041064,2]
[309811548,1704161251119,-35423.54112366,0.00041093,4]
[309811549,1704161251141,-1054.75237644,0.00041093,4]
[309811550,1704161251163,-805.73012304,0.00041093,4]
[309811551,1704161251183,-200.37048132,0.00041093,4]
[309811552,1704161251206,-194.00234771,0.00041093,4]
[309811553,1704161251230,-364.45308755,0.00041093,4]
[309811554,1704161251251,-249.43162452,0.00041093,4]
[309811555,1704161251274,-739.93806711,0.00041094,2]
[309811556,1704161251297,-16081.46760731,0.00041094,4]
[309811557,1704161251318,-3118.88642131,0.00041094,4]
[309811558,1704161251338,-3940.29173596,0.00041094,4]
[309811559,1704161251358,-241.09763242,0.00041094,4]
[309811560,1704161251376,-4590.24957646,0.00041094,4]
[309811561,1704161251395,-3979.12850759,0.00041094,10]
[309811562,1704161251414,-3111.82823819,0.00041094,4]
[309811563,1704161251434,-16677.62138705,0.00041094,4]
[309811564,1704161254099,-1200.34461518,0.00041093,6]
[309811565,1704161254120,-330.80463712,0.00041093,4]
[309811566,1704161254140,-4312.77984123,0.00041094,4]
[309811567,1704161254163,-18246.03436253,0.00041095,3]
[309811568,1704161254182,-500.0,0.00041095,7]
[309811569,1704161254206,-569.09550758,0.00041095,7]
[309811570,1704161254227,-601.16,0.00041095,7]
[309811571,1704161254246,-506.53345961,0.00041095,7]
[309811572,1704161254265,-508.56387337,0.00041095,7]